[Event "*** Titled Tuesday Blitz"]
[Site "Chess.com"]
[Date "2020.04.14"]
[Round "1"]
[White "tamarozi99"]
[Black "canwedoit"]
[Result "0-1"]
[WhiteElo "1961"]
[BlackElo "2522"]
[TimeControl "180+1"]
[EndTime "10:05:22 PDT"]
[Termination "canwedoit won by resignation"]

1. e4 {[%clk 0:02:52.6]} 1... c5 {[%clk 0:02:59.1]} 2. Nf3 {[%clk 0:02:51.6]}
2... Nc6 {[%clk 0:02:59.4]} 3. d4 {[%clk 0:02:47.9]} 3... cxd4 {[%clk
0:03:00.3]} 4. Nxd4 {[%clk 0:02:48.4]} 4... Nf6 {[%clk 0:03:00.7]} 5. Nc3 {[%clk
0:02:47.6]} 5... d6 {[%clk 0:03:01]} 6. Bg5 {[%clk 0:02:46.1]} 6... Bd7 {[%clk
0:03:00.9]} 7. Qd2 {[%clk 0:02:44]} 7... Rc8 {[%clk 0:03:00.5]} 8. f3 {[%clk
0:02:41.6]} 8... Nxd4 {[%clk 0:02:58.3]} 9. Qxd4 {[%clk 0:02:40.6]} 9... Qa5
{[%clk 0:02:58.9]} 10. Bxf6 {[%clk 0:02:27.4]} 10... gxf6 {[%clk 0:02:59.8]} 11.
Bc4 {[%clk 0:02:19.8]} 11... Qc5 {[%clk 0:02:58.3]} 12. Qxc5 {[%clk 0:02:14.1]}
12... Rxc5 {[%clk 0:02:59.2]} 13. Bb3 {[%clk 0:02:14]} 13... f5 {[%clk 0:02:59]}
14. O-O-O {[%clk 0:02:09.4]} 14... Bg7 {[%clk 0:02:57.9]} 15. Nd5 {[%clk
0:02:04.7]} 15... fxe4 {[%clk 0:02:51]} 16. fxe4 {[%clk 0:02:03.4]} 16... Be5
{[%clk 0:02:35.2]} 17. Kb1 {[%clk 0:01:42.6]} 17... Rg8 {[%clk 0:02:30.9]} 18.
g3 {[%clk 0:01:41.9]} 18... Rg4 {[%clk 0:02:28.5]} 19. Rhe1 {[%clk 0:01:36]}
19... h5 {[%clk 0:02:27.3]} 20. Ne3 {[%clk 0:01:23]} 20... Rxe4 {[%clk
0:02:20.5]} 21. Nc4 {[%clk 0:01:22.9]} 21... Rexc4 {[%clk 0:02:10.7]} 22. Bxc4
{[%clk 0:01:23.8]} 22... Rxc4 {[%clk 0:02:11.3]} 23. Rd5 {[%clk 0:01:13.9]}
23... Bf5 {[%clk 0:02:04.2]} 24. Re2 {[%clk 0:01:06.6]} 24... f6 {[%clk
0:02:02.1]} 25. b3 {[%clk 0:01:01.4]} 25... Rc6 {[%clk 0:01:57.8]} 26. a4 {[%clk
0:00:53.1]} 26... Kf7 {[%clk 0:01:56.6]} 27. Kc1 {[%clk 0:00:40.4]} 27... Rc3
{[%clk 0:01:46.6]} 28. Rf2 {[%clk 0:00:36.6]} 28... Be6 {[%clk 0:01:43.8]} 29.
Rb5 {[%clk 0:00:36.3]} 29... b6 {[%clk 0:01:41.2]} 30. a5 {[%clk 0:00:36.2]}
30... Bd4 {[%clk 0:01:38.6]} 31. Rd2 {[%clk 0:00:33.6]} 31... Be3 {[%clk
0:01:38.8]} 32. axb6 {[%clk 0:00:29.8]} 32... axb6 {[%clk 0:01:39.7]} 33. Rxb6
{[%clk 0:00:28.3]} 33... Bxb6 {[%clk 0:01:38.9]} 0-1

[Event "*** Titled Tuesday Blitz"]
[Site "Chess.com"]
[Date "2020.04.14"]
[Round "1"]
[White "algatar2020"]
[Black "Superfelix"]
[Result "0-1"]
[WhiteElo "1866"]
[BlackElo "2519"]
[TimeControl "180+1"]
[EndTime "10:05:27 PDT"]
[Termination "Superfelix won by resignation"]

1. d4 {[%clk 0:03:00.8]} 1... Nf6 {[%clk 0:02:59.5]} 2. f4 {[%clk 0:03:01.1]}
2... d5 {[%clk 0:02:57.3]} 3. Nf3 {[%clk 0:03:01.3]} 3... c6 {[%clk 0:02:57]} 4.
e3 {[%clk 0:03:01.8]} 4... Ne4 {[%clk 0:02:56.8]} 5. Nbd2 {[%clk 0:03:02.2]}
5... Nd6 {[%clk 0:02:54.2]} 6. Bd3 {[%clk 0:03:01.7]} 6... Bf5 {[%clk
0:02:53.8]} 7. Qe2 {[%clk 0:03:02]} 7... e6 {[%clk 0:02:53.3]} 8. c3 {[%clk
0:03:00.3]} 8... Bxd3 {[%clk 0:02:52.8]} 9. Qxd3 {[%clk 0:03:00.3]} 9... f5
{[%clk 0:02:53.1]} 10. b4 {[%clk 0:02:53.7]} 10... Nd7 {[%clk 0:02:53.2]} 11. a4
{[%clk 0:02:49.3]} 11... a5 {[%clk 0:02:52.9]} 12. b5 {[%clk 0:02:48.7]} 12...
c5 {[%clk 0:02:53]} 13. c4 {[%clk 0:02:45.8]} 13... cxd4 {[%clk 0:02:49.3]} 14.
Nxd4 {[%clk 0:02:42.6]} 14... Nc5 {[%clk 0:02:48.7]} 15. Qc2 {[%clk 0:02:34.9]}
15... Nde4 {[%clk 0:02:44.2]} 16. O-O {[%clk 0:02:23.3]} 16... Be7 {[%clk
0:02:39.9]} 17. Nxe4 {[%clk 0:02:20.2]} 17... dxe4 {[%clk 0:02:38.9]} 18. Ba3
{[%clk 0:02:15]} 18... Qb6 {[%clk 0:02:37.9]} 19. Rfd1 {[%clk 0:02:02.6]} 19...
O-O {[%clk 0:02:37.3]} 20. Nb3 {[%clk 0:01:39.5]} 20... Rac8 {[%clk 0:02:35]}
21. Nxc5 {[%clk 0:01:37.1]} 21... Bxc5 {[%clk 0:02:35.9]} 22. Bxc5 {[%clk
0:01:37.3]} 22... Qxc5 {[%clk 0:02:36.1]} 23. Rd4 {[%clk 0:01:37.1]} 23... Rfd8
{[%clk 0:02:25.6]} 24. Rad1 {[%clk 0:01:36.1]} 24... Rxd4 {[%clk 0:02:25.4]} 25.
Rxd4 {[%clk 0:01:33.8]} 25... Qb4 {[%clk 0:02:25.5]} 26. Kf2 {[%clk 0:01:11.2]}
26... h6 {[%clk 0:02:23.1]} 27. c5 {[%clk 0:01:00.1]} 27... Rxc5 {[%clk
0:02:13.4]} 28. Qd1 {[%clk 0:00:49.1]} 28... Qb2+ {[%clk 0:02:10.1]} 29. Rd2
{[%clk 0:00:43.4]} 29... Qf6 {[%clk 0:02:01.1]} 30. Rd8+ {[%clk 0:00:38.2]}
30... Kh7 {[%clk 0:02:01.1]} 31. Qh5 {[%clk 0:00:30.8]} 31... Rc2+ {[%clk
0:01:56.5]} 32. Kg3 {[%clk 0:00:30.3]} 32... Qxd8 {[%clk 0:01:43.6]} 0-1

[Event "*** Titled Tuesday Blitz"]
[Site "Chess.com"]
[Date "2020.04.14"]
[Round "1"]
[White "Revnov"]
[Black "blazingbanana"]
[Result "1-0"]
[WhiteElo "2779"]
[BlackElo "2406"]
[TimeControl "180+1"]
[EndTime "10:05:30 PDT"]
[Termination "Revnov won by resignation"]

1. e4 {[%clk 0:03:00.9]} 1... c5 {[%clk 0:02:59.6]} 2. Nf3 {[%clk 0:03:01.1]}
2... d6 {[%clk 0:02:59.9]} 3. d4 {[%clk 0:03:01.6]} 3... cxd4 {[%clk 0:03:00.7]}
4. Nxd4 {[%clk 0:03:02.5]} 4... Nf6 {[%clk 0:03:01.2]} 5. Nc3 {[%clk 0:03:03]}
5... a6 {[%clk 0:03:02]} 6. Be2 {[%clk 0:03:03.2]} 6... e6 {[%clk 0:03:02.9]} 7.
O-O {[%clk 0:03:01.7]} 7... Be7 {[%clk 0:03:03.8]} 8. f4 {[%clk 0:02:59.6]} 8...
O-O {[%clk 0:03:03.5]} 9. Bf3 {[%clk 0:02:56.4]} 9... Qc7 {[%clk 0:03:03.5]} 10.
a4 {[%clk 0:02:55.5]} 10... Nc6 {[%clk 0:03:02]} 11. Nb3 {[%clk 0:02:49.2]}
11... b6 {[%clk 0:03:00.6]} 12. Be3 {[%clk 0:02:46.4]} 12... Bb7 {[%clk
0:02:59.9]} 13. Qd2 {[%clk 0:02:46.1]} 13... Rac8 {[%clk 0:02:59]} 14. Qf2
{[%clk 0:02:41.9]} 14... Nd7 {[%clk 0:02:54.3]} 15. Rad1 {[%clk 0:02:39.6]}
15... Nc5 {[%clk 0:02:52.7]} 16. Nd4 {[%clk 0:02:21.6]} 16... Nxd4 {[%clk
0:02:49]} 17. Bxd4 {[%clk 0:02:20]} 17... e5 {[%clk 0:02:48.7]} 18. Be3 {[%clk
0:02:09.5]} 18... Rfd8 {[%clk 0:02:40.8]} 19. Rd2 {[%clk 0:02:01.7]} 19... d5
{[%clk 0:02:30.4]} 20. fxe5 {[%clk 0:01:40.2]} 20... Qxe5 {[%clk 0:02:16.4]} 21.
Bg4 {[%clk 0:01:26.3]} 21... Bf6 {[%clk 0:02:03.9]} 22. Bxc8 {[%clk 0:01:19.4]}
22... Rxc8 {[%clk 0:01:59.6]} 23. Bd4 {[%clk 0:01:13.7]} 23... Qg5 {[%clk
0:01:57.7]} 24. Bxf6 {[%clk 0:01:13.1]} 24... gxf6 {[%clk 0:01:57.5]} 25. exd5
{[%clk 0:01:10]} 25... b5 {[%clk 0:01:49.1]} 26. axb5 {[%clk 0:01:07.9]} 26...
axb5 {[%clk 0:01:50]} 27. Rd4 {[%clk 0:01:06.8]} 27... Nd7 {[%clk 0:01:36.6]}
28. Ne4 {[%clk 0:01:01.6]} 28... Qe5 {[%clk 0:01:30.9]} 29. Nxf6+ {[%clk
0:00:53.2]} 29... Nxf6 {[%clk 0:01:29.5]} 30. Qxf6 {[%clk 0:00:54.1]} 30... Qxf6
{[%clk 0:01:27.1]} 31. Rxf6 {[%clk 0:00:55]} 31... Rxc2 {[%clk 0:01:27.2]} 32.
d6 {[%clk 0:00:53.2]} 32... Rxg2+ {[%clk 0:01:25]} 33. Kf1 {[%clk 0:00:52.6]}
33... Rxh2 {[%clk 0:01:14.8]} 34. d7 {[%clk 0:00:51]} 34... Kg7 {[%clk
0:01:10.8]} 35. d8=Q {[%clk 0:00:49.1]} 1-0

[Event "*** Titled Tuesday Blitz"]
[Site "Chess.com"]
[Date "2020.04.14"]
[Round "1"]
[White "Funkmaus"]
[Black "Pavlov_Sergey"]
[Result "0-1"]
[WhiteElo "2189"]
[BlackElo "2576"]
[TimeControl "180+1"]
[EndTime "10:05:30 PDT"]
[Termination "Pavlov_Sergey won on time"]

1. d4 {[%clk 0:02:57]} 1... Nf6 {[%clk 0:02:59.6]} 2. Nf3 {[%clk 0:02:53.5]}
2... e6 {[%clk 0:02:59.5]} 3. g3 {[%clk 0:02:51.9]} 3... c5 {[%clk 0:02:58.8]}
4. Bg2 {[%clk 0:02:52.8]} 4... cxd4 {[%clk 0:02:58.6]} 5. Nxd4 {[%clk
0:02:53.7]} 5... d5 {[%clk 0:02:59.1]} 6. O-O {[%clk 0:02:51.4]} 6... e5 {[%clk
0:02:59.2]} 7. Nb3 {[%clk 0:02:47.1]} 7... Be6 {[%clk 0:02:58.9]} 8. c3 {[%clk
0:02:44.1]} 8... Be7 {[%clk 0:02:55.3]} 9. N1d2 {[%clk 0:02:42]} 9... Nc6 {[%clk
0:02:54.1]} 10. e4 {[%clk 0:02:37.8]} 10... O-O {[%clk 0:02:50.8]} 11. exd5
{[%clk 0:02:29.7]} 11... Bxd5 {[%clk 0:02:49.4]} 12. Nf3 {[%clk 0:02:17.8]}
12... a5 {[%clk 0:02:36.6]} 13. Be3 {[%clk 0:02:09.9]} 13... a4 {[%clk
0:02:31.2]} 14. Nc5 {[%clk 0:02:07.3]} 14... b5 {[%clk 0:02:13.5]} 15. h3 {[%clk
0:01:50.9]} 15... Bc4 {[%clk 0:02:06.6]} 16. Re1 {[%clk 0:01:40]} 16... Nd5
{[%clk 0:02:06.1]} 17. Qc1 {[%clk 0:01:11.5]} 17... f5 {[%clk 0:01:43]} 18. Bg5
{[%clk 0:00:45.1]} 18... e4 {[%clk 0:01:37.9]} 19. Ne6 {[%clk 0:00:24.8]} 19...
Qd6 {[%clk 0:01:35.5]} 20. Nxf8 {[%clk 0:00:15]} 20... exf3 {[%clk 0:01:30.8]}
0-1

[Event "*** Titled Tuesday Blitz"]
[Site "Chess.com"]
[Date "2020.04.14"]
[Round "1"]
[White "Zkid"]
[Black "littleozy"]
[Result "1-0"]
[WhiteElo "2830"]
[BlackElo "2439"]
[TimeControl "180+1"]
[EndTime "10:05:33 PDT"]
[Termination "Zkid won by resignation"]

1. e4 {[%clk 0:02:56.1]} 1... c6 {[%clk 0:02:59.9]} 2. d4 {[%clk 0:02:55.5]}
2... d5 {[%clk 0:02:59.8]} 3. exd5 {[%clk 0:02:56]} 3... cxd5 {[%clk 0:02:59.8]}
4. Bd3 {[%clk 0:02:56.5]} 4... Nc6 {[%clk 0:02:59]} 5. c3 {[%clk 0:02:55.4]}
5... Nf6 {[%clk 0:02:58.3]} 6. Bf4 {[%clk 0:02:54.4]} 6... g6 {[%clk 0:02:55.7]}
7. Nf3 {[%clk 0:02:53.2]} 7... Bg7 {[%clk 0:02:54.8]} 8. O-O {[%clk 0:02:52.3]}
8... Bf5 {[%clk 0:02:51.9]} 9. Be2 {[%clk 0:02:51.7]} 9... O-O {[%clk
0:02:48.5]} 10. h3 {[%clk 0:02:48.4]} 10... Rc8 {[%clk 0:02:44.6]} 11. Nbd2
{[%clk 0:02:47.6]} 11... Ne4 {[%clk 0:02:38.6]} 12. Re1 {[%clk 0:02:21.5]} 12...
Re8 {[%clk 0:02:02.1]} 13. Nf1 {[%clk 0:02:04]} 13... e5 {[%clk 0:01:39.8]} 14.
dxe5 {[%clk 0:02:03.5]} 14... Nxe5 {[%clk 0:01:34.7]} 15. Nxe5 {[%clk
0:02:01.7]} 15... Bxe5 {[%clk 0:01:32.5]} 16. Bxe5 {[%clk 0:02:00.5]} 16... Rxe5
{[%clk 0:01:31.8]} 17. Qd4 {[%clk 0:01:57.9]} 17... Qe7 {[%clk 0:01:25.3]} 18.
Ne3 {[%clk 0:01:52.9]} 18... Qh4 {[%clk 0:00:48.4]} 19. Qxe5 {[%clk 0:01:37.5]}
19... Qxf2+ {[%clk 0:00:46.5]} 20. Kh2 {[%clk 0:01:38]} 20... Qxe3 {[%clk
0:00:40.1]} 21. Bg4 {[%clk 0:01:32.9]} 21... Qg5 {[%clk 0:00:28.5]} 22. Bxf5
{[%clk 0:01:31.2]} 22... Qxf5 {[%clk 0:00:17.1]} 23. Qxf5 {[%clk 0:01:30.7]}
23... gxf5 {[%clk 0:00:18]} 24. Rad1 {[%clk 0:01:30.9]} 24... Rd8 {[%clk
0:00:14.3]} 25. Rf1 {[%clk 0:01:29.7]} 1-0

[Event "*** Titled Tuesday Blitz"]
[Site "Chess.com"]
[Date "2020.04.14"]
[Round "1"]
[White "HarutyunianTigranK"]
[Black "fugadelafuga"]
[Result "1-0"]
[WhiteElo "2698"]
[BlackElo "2348"]
[TimeControl "180+1"]
[EndTime "10:05:35 PDT"]
[Termination "HarutyunianTigranK won by resignation"]

1. c4 {[%clk 0:03:00.9]} 1... c5 {[%clk 0:02:47.2]} 2. Nf3 {[%clk 0:03:00.1]}
2... Nc6 {[%clk 0:02:47.7]} 3. Nc3 {[%clk 0:02:57.8]} 3... g6 {[%clk 0:02:44.4]}
4. e3 {[%clk 0:02:57]} 4... Bg7 {[%clk 0:02:43.6]} 5. d4 {[%clk 0:02:56.6]} 5...
cxd4 {[%clk 0:02:44.5]} 6. exd4 {[%clk 0:02:57]} 6... d6 {[%clk 0:02:42.7]} 7.
d5 {[%clk 0:02:57.2]} 7... Ne5 {[%clk 0:02:42.2]} 8. Nxe5 {[%clk 0:02:57.3]}
8... Bxe5 {[%clk 0:02:43.1]} 9. Bd3 {[%clk 0:02:57.7]} 9... Bg7 {[%clk
0:02:38.2]} 10. O-O {[%clk 0:02:56.8]} 10... Nf6 {[%clk 0:02:38.6]} 11. Re1
{[%clk 0:02:57.2]} 11... O-O {[%clk 0:02:39]} 12. h3 {[%clk 0:02:50.2]} 12... a6
{[%clk 0:02:35.6]} 13. Bf4 {[%clk 0:02:49.6]} 13... Rb8 {[%clk 0:02:35.3]} 14.
Qd2 {[%clk 0:02:47.2]} 14... Re8 {[%clk 0:02:33.6]} 15. Rac1 {[%clk 0:02:45.8]}
15... Bd7 {[%clk 0:02:29]} 16. b4 {[%clk 0:02:33.5]} 16... b5 {[%clk 0:02:22.6]}
17. c5 {[%clk 0:02:33.1]} 17... dxc5 {[%clk 0:02:22.4]} 18. bxc5 {[%clk
0:02:31.7]} 18... Ra8 {[%clk 0:02:11]} 19. c6 {[%clk 0:02:28.3]} 19... Bc8
{[%clk 0:02:09.3]} 20. Be4 {[%clk 0:01:45.6]} 20... Nxe4 {[%clk 0:01:39.6]} 21.
Nxe4 {[%clk 0:01:46.5]} 21... Bf5 {[%clk 0:01:34.9]} 22. c7 {[%clk 0:01:45.6]}
22... Qc8 {[%clk 0:01:31.1]} 23. d6 {[%clk 0:01:45.4]} 23... exd6 {[%clk
0:00:58.9]} 24. Nxd6 {[%clk 0:01:42.8]} 24... Rxe1+ {[%clk 0:00:56.9]} 25. Qxe1
{[%clk 0:01:43.7]} 25... Qe6 {[%clk 0:00:52.6]} 26. Qxe6 {[%clk 0:01:36]} 26...
Bxe6 {[%clk 0:00:53.5]} 27. c8=Q+ {[%clk 0:01:31.8]} 27... Bxc8 {[%clk
0:00:51.9]} 28. Rxc8+ {[%clk 0:01:28]} 28... Rxc8 {[%clk 0:00:51.8]} 29. Nxc8
{[%clk 0:01:28.9]} 29... a5 {[%clk 0:00:49.1]} 30. Na7 {[%clk 0:01:25.1]} 30...
b4 {[%clk 0:00:48.7]} 31. Nc6 {[%clk 0:01:25.2]} 31... Bc3 {[%clk 0:00:45.8]}
32. Nxa5 {[%clk 0:01:24.6]} 32... f5 {[%clk 0:00:45.9]} 33. Nb3 {[%clk
0:01:24.2]} 33... Kf7 {[%clk 0:00:46.1]} 34. Bd2 {[%clk 0:01:24.2]} 34... Ke6
{[%clk 0:00:46.5]} 35. Bxc3 {[%clk 0:01:24.1]} 35... bxc3 {[%clk 0:00:47.4]} 36.
Kf1 {[%clk 0:01:24.4]} 36... Kd5 {[%clk 0:00:48.3]} 37. Ke2 {[%clk 0:01:24.2]}
37... Kc4 {[%clk 0:00:48.5]} 38. Kd1 {[%clk 0:01:24.2]} 38... Kd3 {[%clk
0:00:47.5]} 39. Nc1+ {[%clk 0:01:24.3]} 39... Kc4 {[%clk 0:00:47.1]} 40. Kc2
{[%clk 0:01:25.2]} 40... Kb4 {[%clk 0:00:47.5]} 41. Ne2 {[%clk 0:01:25.1]} 1-0

[Event "*** Titled Tuesday Blitz"]
[Site "Chess.com"]
[Date "2020.04.14"]
[Round "1"]
[White "PavelChernomordik"]
[Black "MatthewG-p4p"]
[Result "1-0"]
[WhiteElo "2427"]
[BlackElo "2766"]
[TimeControl "180+1"]
[EndTime "10:05:36 PDT"]
[Termination "PavelChernomordik won by resignation"]

1. e4 {[%clk 0:03:00]} 1... e6 {[%clk 0:01:26.8]} 2. Nc3 {[%clk 0:02:55.2]} 2...
d5 {[%clk 0:01:25.3]} 3. d4 {[%clk 0:02:54.8]} 3... Bb4 {[%clk 0:01:24.9]} 4.
Ne2 {[%clk 0:02:52.7]} 4... dxe4 {[%clk 0:01:23.9]} 5. a3 {[%clk 0:02:51]} 5...
Bxc3+ {[%clk 0:01:24.5]} 6. Nxc3 {[%clk 0:02:48.5]} 6... Nc6 {[%clk 0:01:25.4]}
7. Be3 {[%clk 0:02:48.3]} 7... Nge7 {[%clk 0:01:25]} 8. Qg4 {[%clk 0:02:44.5]}
8... O-O {[%clk 0:01:23]} 9. Qxe4 {[%clk 0:02:41.1]} 9... Nf5 {[%clk 0:01:18.4]}
10. O-O-O {[%clk 0:02:39.2]} 10... Nxe3 {[%clk 0:01:16.1]} 11. fxe3 {[%clk
0:02:36.4]} 11... Ne7 {[%clk 0:01:15.6]} 12. Bd3 {[%clk 0:02:34.2]} 12... f5
{[%clk 0:01:13.1]} 13. Qf3 {[%clk 0:02:28.5]} 13... Rb8 {[%clk 0:01:12.2]} 14.
g4 {[%clk 0:02:24.7]} 14... c5 {[%clk 0:01:06.4]} 15. Rhg1 {[%clk 0:02:22.2]}
15... cxd4 {[%clk 0:01:05]} 16. exd4 {[%clk 0:02:19.4]} 16... Qxd4 {[%clk
0:01:01.2]} 17. gxf5 {[%clk 0:02:18]} 17... exf5 {[%clk 0:00:31.8]} 18. Qg3
{[%clk 0:02:09.9]} 18... Be6 {[%clk 0:00:31]} 19. Bc4 {[%clk 0:02:03.4]} 19...
Qf6 {[%clk 0:00:23.5]} 20. Bxe6+ {[%clk 0:02:01.7]} 20... Kh8 {[%clk 0:00:24.2]}
21. Bb3 {[%clk 0:01:59.3]} 21... f4 {[%clk 0:00:24.1]} 22. Qg4 {[%clk
0:01:56.9]} 22... f3 {[%clk 0:00:23.5]} 23. Ne4 {[%clk 0:01:54.3]} 23... Qe5
{[%clk 0:00:21.4]} 24. Ng5 {[%clk 0:01:47]} 24... Qe3+ {[%clk 0:00:12.9]} 25.
Kb1 {[%clk 0:01:45.8]} 25... Ng6 {[%clk 0:00:13.4]} 26. Nxh7 {[%clk 0:01:36.3]}
26... Qh6 {[%clk 0:00:10.5]} 27. Nxf8 {[%clk 0:01:33.4]} 1-0

[Event "*** Titled Tuesday Blitz"]
[Site "Chess.com"]
[Date "2020.04.14"]
[Round "1"]
[White "1g41-0"]
[Black "eljanov"]
[Result "0-1"]
[WhiteElo "2465"]
[BlackElo "2867"]
[TimeControl "180+1"]
[EndTime "10:05:37 PDT"]
[Termination "eljanov won by resignation"]

1. d4 {[%clk 0:02:58.9]} 1... d5 {[%clk 0:02:58.3]} 2. c4 {[%clk 0:02:59.2]}
2... c6 {[%clk 0:02:57.6]} 3. Nc3 {[%clk 0:02:59.6]} 3... Nf6 {[%clk 0:02:57.8]}
4. Nf3 {[%clk 0:02:59.1]} 4... a6 {[%clk 0:02:56.2]} 5. c5 {[%clk 0:02:36.4]}
5... Bf5 {[%clk 0:02:54.6]} 6. Bf4 {[%clk 0:02:36.2]} 6... Nbd7 {[%clk
0:02:53.8]} 7. e3 {[%clk 0:02:36.6]} 7... Nh5 {[%clk 0:02:53.4]} 8. Bg3 {[%clk
0:02:34.7]} 8... Nxg3 {[%clk 0:02:51.9]} 9. hxg3 {[%clk 0:02:35.6]} 9... h6
{[%clk 0:02:35.4]} 10. Bd3 {[%clk 0:02:28.8]} 10... Bxd3 {[%clk 0:02:34.1]} 11.
Qxd3 {[%clk 0:02:29.7]} 11... e6 {[%clk 0:02:33.4]} 12. b4 {[%clk 0:02:24.2]}
12... Be7 {[%clk 0:02:28.3]} 13. O-O {[%clk 0:02:13.5]} 13... O-O {[%clk
0:02:26.7]} 14. a4 {[%clk 0:02:11.2]} 14... Bf6 {[%clk 0:02:17.6]} 15. e4 {[%clk
0:01:55.4]} 15... dxe4 {[%clk 0:02:12.6]} 16. Nxe4 {[%clk 0:01:56.3]} 16... Be7
{[%clk 0:02:02.6]} 17. Nfd2 {[%clk 0:01:33.9]} 17... a5 {[%clk 0:01:46.7]} 18.
Rfb1 {[%clk 0:01:21.4]} 18... axb4 {[%clk 0:01:43.7]} 19. Qc4 {[%clk 0:01:16.1]}
19... b6 {[%clk 0:01:22.6]} 20. Rxb4 {[%clk 0:01:10.7]} 20... bxc5 {[%clk
0:01:17.2]} 21. dxc5 {[%clk 0:00:55.3]} 21... Nxc5 {[%clk 0:01:07.2]} 22. Nxc5
{[%clk 0:00:56.2]} 22... Qxd2 {[%clk 0:01:00.1]} 23. a5 {[%clk 0:00:44]} 23...
Qd5 {[%clk 0:00:54.8]} 24. Qxd5 {[%clk 0:00:34.8]} 24... exd5 {[%clk 0:00:49.6]}
0-1

[Event "*** Titled Tuesday Blitz"]
[Site "Chess.com"]
[Date "2020.04.14"]
[Round "1"]
[White "GukeshDommaraju"]
[Black "Irishchessman16"]
[Result "1-0"]
[WhiteElo "2705"]
[BlackElo "2356"]
[TimeControl "180+1"]
[EndTime "10:05:38 PDT"]
[Termination "GukeshDommaraju won by resignation"]

1. e4 {[%clk 0:03:00.9]} 1... c5 {[%clk 0:02:57.9]} 2. Nf3 {[%clk 0:03:00.7]}
2... Nc6 {[%clk 0:02:57.7]} 3. Bb5 {[%clk 0:02:58.6]} 3... g6 {[%clk 0:02:56.1]}
4. Bxc6 {[%clk 0:02:57.8]} 4... dxc6 {[%clk 0:02:55.7]} 5. d3 {[%clk 0:02:57.8]}
5... Bg7 {[%clk 0:02:54.8]} 6. h3 {[%clk 0:02:55.9]} 6... Qc7 {[%clk 0:02:54.7]}
7. Nbd2 {[%clk 0:02:53]} 7... e5 {[%clk 0:02:51.6]} 8. Nc4 {[%clk 0:02:50.4]}
8... Ne7 {[%clk 0:02:49.6]} 9. a4 {[%clk 0:02:48.9]} 9... Be6 {[%clk 0:02:31]}
10. b3 {[%clk 0:02:44.9]} 10... a5 {[%clk 0:02:26.5]} 11. Bb2 {[%clk 0:02:34.3]}
11... f6 {[%clk 0:02:22.1]} 12. O-O {[%clk 0:02:33.2]} 12... g5 {[%clk
0:02:19.8]} 13. Nfd2 {[%clk 0:02:20.8]} 13... h5 {[%clk 0:02:18.1]} 14. Re1
{[%clk 0:02:12.7]} 14... Ng6 {[%clk 0:02:12.9]} 15. Ne3 {[%clk 0:02:04.1]} 15...
Qd7 {[%clk 0:01:45]} 16. Ndc4 {[%clk 0:01:50.7]} 16... Ra6 {[%clk 0:01:29.3]}
17. Nf5 {[%clk 0:00:56.6]} 17... Bxf5 {[%clk 0:01:28.4]} 18. exf5 {[%clk
0:00:56.2]} 18... Ne7 {[%clk 0:01:29]} 19. Qf3 {[%clk 0:00:53.8]} 19... Kf7
{[%clk 0:01:23.4]} 20. Bxe5 {[%clk 0:00:51.3]} 20... fxe5 {[%clk 0:00:55]} 21.
f6 {[%clk 0:00:51.2]} 21... Ng6 {[%clk 0:00:53]} 22. fxg7+ {[%clk 0:00:51]}
22... Kxg7 {[%clk 0:00:53.3]} 23. Nxe5 {[%clk 0:00:51.3]} 23... Nxe5 {[%clk
0:00:53.3]} 24. Rxe5 {[%clk 0:00:52.2]} 24... Qd8 {[%clk 0:00:45]} 25. Rae1
{[%clk 0:00:51.6]} 25... Rf8 {[%clk 0:00:44.6]} 26. Re7+ {[%clk 0:00:50.4]} 1-0

[Event "*** Titled Tuesday Blitz"]
[Site "Chess.com"]
[Date "2020.04.14"]
[Round "1"]
[White "econpower"]
[Black "kasparicy"]
[Result "1-0"]
[WhiteElo "2659"]
[BlackElo "2310"]
[TimeControl "180+1"]
[EndTime "10:05:38 PDT"]
[Termination "econpower won by resignation"]

1. c4 {[%clk 0:02:58.6]} 1... e5 {[%clk 0:02:59]} 2. g3 {[%clk 0:02:58.7]} 2...
Nc6 {[%clk 0:02:57.4]} 3. Bg2 {[%clk 0:02:59.2]} 3... f5 {[%clk 0:02:58]} 4. Nc3
{[%clk 0:03:00.1]} 4... d6 {[%clk 0:02:58]} 5. e3 {[%clk 0:03:00.4]} 5... Nf6
{[%clk 0:02:58.7]} 6. Nge2 {[%clk 0:03:00.8]} 6... Be7 {[%clk 0:02:58.9]} 7. O-O
{[%clk 0:03:00.8]} 7... O-O {[%clk 0:02:58.5]} 8. d3 {[%clk 0:03:01.3]} 8... Qe8
{[%clk 0:02:58.3]} 9. h3 {[%clk 0:02:59.3]} 9... Kh8 {[%clk 0:02:57.6]} 10. f4
{[%clk 0:02:59.1]} 10... Qg6 {[%clk 0:02:54.1]} 11. Nd5 {[%clk 0:02:57.3]} 11...
Bd8 {[%clk 0:02:52.2]} 12. Kh2 {[%clk 0:02:47]} 12... Bd7 {[%clk 0:02:48.9]} 13.
b4 {[%clk 0:02:38]} 13... Nxd5 {[%clk 0:02:43.8]} 14. cxd5 {[%clk 0:02:37.6]}
14... Nxb4 {[%clk 0:02:43.7]} 15. Qb3 {[%clk 0:02:35]} 15... Na6 {[%clk
0:02:42.9]} 16. Qxb7 {[%clk 0:02:34.6]} 16... Nc5 {[%clk 0:02:04.9]} 17. Qxa8
{[%clk 0:02:33.9]} 17... Bb5 {[%clk 0:01:32.5]} 18. fxe5 {[%clk 0:02:08.5]}
18... dxe5 {[%clk 0:01:23.9]} 19. Ba3 {[%clk 0:02:05.2]} 19... Qb6 {[%clk
0:00:56.9]} 20. Rxf5 {[%clk 0:01:56.1]} 20... Re8 {[%clk 0:00:54.1]} 21. d6
{[%clk 0:01:24.7]} 21... cxd6 {[%clk 0:00:46.1]} 22. Qf3 {[%clk 0:01:23.3]}
22... Be7 {[%clk 0:00:42.4]} 23. Rf1 {[%clk 0:01:20.4]} 23... h6 {[%clk
0:00:40.5]} 24. Bxc5 {[%clk 0:01:17.4]} 24... Qxc5 {[%clk 0:00:39.9]} 25. Nc1
{[%clk 0:01:17.2]} 25... Bd7 {[%clk 0:00:28]} 26. Rf7 {[%clk 0:01:16.3]} 1-0